Cogmind - Beta 10.2 *** ADVENTURER MODE // 2022.02.14 @ 14:48:46 Player: Kaz Result: Destroyed by B-75 Beast with Heavy Plasma Cannon Performance ------------- Evolutions (4) 2000 Regions Visited (7) 1400 Robots Destroyed (71) 355 Value Destroyed (1860) 1860 Prototype IDs (1) 20 Alien Tech Used (0) 0 Bonus (992) 992 TOTAL SCORE: 6627 Bonus ------- Follower Combat Kills 392 Met Imprinter 300 Was Imprinted 300 Cogmind --------- Core Integrity 0/850 Matter 300/300 Energy 100/100 System Corruption 1% Temperature Cool (12) Movement Core (300) Ox5 Location -6/Extension Parts ------- > --- POWER (2) -------- (None) > --- PROPULSION (3) --- (None) > --- UTILITY (7) ------ Large Storage Unit > --- WEAPON (3) ------- (None) > --- INVENTORY (10) --- Neutrino Core Carbon-fiber Leg Wheel Compact Wheel Hacking Drone Bay (1/1) Flak Gun Flak Gun Maul CR-A16's Pointy Stick Peak State ------------ > --- POWER ------------ Light Deuterium Engine Light Nuclear Core > --- PROPULSION ------- Wheel Armored Wheel Armored Wheel > --- UTILITY ---------- Large Storage Unit High-capacity Storage Unit High-capacity Battery High-capacity Matter Pod Core Shielding Improved Propulsion Shielding Improved Light Armor Plating > --- WEAPON ----------- Heavy Machine Gun Light Cannon Improved Light Cannon > --- INVENTORY -------- Light Nuclear Core High-capacity Battery High-capacity Matter Pod Hacking Drone Bay Proton Cannon Beam Cannon Beam Cannon Assault Rifle Improved Light Cannon Improved Light Cannon Improved Light Cannon Flak Cannon Flak Cannon Maul CR-A16's Pointy Stick [Rating: 34] Favorites ----------- Power Light Nuclear Core Engine Light Angular Momentum Engine Power Core Light Nuclear Core Propulsion Armored Wheel Wheel Armored Wheel Utility Large Storage Unit Device High-powered Tractor Beam Storage Large Storage Unit Protection Improved Propulsion Shielding Weapon Improved Light Cannon Energy Gun Small Laser Energy Cannon Beam Cannon Ballistic Gun Assault Rifle Ballistic Cannon Improved Light Cannon Piercing Weapon CR-A16's Pointy Stick Build | -11 -10 -9 -9 -7 -6 -6 -6 ------- Run | Scr Mat Mat Min Zio Pro Fac Ext Slots Evolved 8 | . . 2 . . . 6 . Power 1 | . . . . . . 1 . Propulsion 1 | . . . . . . 1 . Utility 5 | . . 2 . . . 3 . Weapon 1 | . . . . . . 1 . Parts Attached 56 | 7 10 4 . 4 1 26 4 Power 11 | 1 2 1 . . . 5 2 Engine 6 | 1 1 . . . . 4 . Core 5 | . 1 1 . . . 1 2 Reactor . | . . . . . . . . Propulsion 11 | 2 1 1 . 1 1 4 1 Treads . | . . . . . . . . Leg . | . . . . . . . . Wheel 11 | 2 1 1 . 1 1 4 1 Hover . | . . . . . . . . Flight . | . . . . . . . . Utility 16 | 1 5 2 . 3 . 5 . Device 2 | . 1 . . 1 . . . Storage 11 | 1 4 2 . 2 . 2 . Processor . | . . . . . . . . Hackware . | . . . . . . . . Protection 3 | . . . . . . 3 . Artifact . | . . . . . . . . Weapon 18 | 3 2 . . . . 12 1 Energy Gun 1 | 1 . . . . . . . Energy Cannon 3 | . . . . . . 3 . Ballistic Gun 6 | 2 . . . . . 3 1 Ballistic Cannon 7 | . 2 . . . . 5 . Launcher . | . . . . . . . . Special Weapon . | . . . . . . . . Impact Weapon . | . . . . . . . . Slashing Weapon . | . . . . . . . . Piercing Weapon 1 | . . . . . . 1 . Special Melee Weapon . | . . . . . . . . Unidentified Prototypes 1 | . . . . 1 . . . Parts Lost 32 | . . . . . . 18 14 Power 6 | . . . . . . 3 3 Propulsion 6 | . . . . . . 3 3 Utility 8 | . . . . . . 4 4 Weapon 12 | . . . . . . 8 4 Highest Loss Streak 8 | . . . . . . 4 8 Average Slot Usage (%) 88 | . 98 100 100 100 100 63 76 Engine 2 | . 4 8 . . . 3 6 Core 8 | . 9 2 11 11 11 5 3 Wheel 18 | . 27 22 22 22 22 7 16 Storage 35 | . 27 44 44 44 44 22 31 Protection 1 | . . . . . . 5 . Energy Cannon 1 | . . . . . . 5 . Ballistic Gun 2 | . 5 . . . . 4 5 Ballistic Cannon 17 | . 22 22 22 22 22 6 12 Naked Turns . | . . . . . . . . Heaviest Build 88 | 12 45 53 53 69 69 86 88 Greatest Support 48 | 26 26 28 28 28 24 42 48 Greatest Overweight (x) 24 | . 1 2 1 3 3 24 18 Average Overweight (x) 2 | . . 1 1 2 2 4 1 Largest Inventory Capacity 18 | 6 16 16 16 18 18 18 18 Average Capacity 17 | 5 15 16 16 17 18 18 17 Most Carried 18 | 4 16 16 16 17 18 18 10 Average Carried 13 | . 13 15 16 16 17 9 7 Final Capacity 18 | 6 16 16 16 18 18 18 10 Final Carried 18 | 1 15 16 16 17 18 3 9 Class Distribution -------------------- 74% | Mutant 12% | Gunner 7% | Scavenger-Gunner 4% | Derelict-Tank Dominant Class ---------------- Mutant | -10/Materials Mutant | -9/Materials Mutant | -9/Mines Mutant | -7/Zion Mutant | -6/Proximity Caves Gunner | -6/Factory Scavenger-Gunner | -6/Extension Resources | -11 -10 -9 -9 -7 -6 -6 -6 ----------- Run | Scr Mat Mat Min Zio Pro Fac Ext Matter Collected 2399 | 215 476 196 159 128 406 600 219 Remotely . | . . . . . . . . Salvage Created 2136 | . 340 199 159 37 24 1055 322 Parts 124 | . 34 24 18 . 2 36 10 Haulers Intercepted 3 | . 2 1 . . . . . Recyclers Shooed . | . . . . . . . . Parts Field Recycled . | . . . . . . . . Retrieved Matter . | . . . . . . . . Parts Self-Destructed 9 | . . . . 1 8 . . Prevented 5 | . . . . . 5 . . Kills | -11 -10 -9 -9 -7 -6 -6 -6 ------- Run | Scr Mat Mat Min Zio Pro Fac Ext Combat Hostiles Destroyed 52 | . 11 10 10 . 1 11 9 Melee 3 | . . . . . . 3 . Guns 5 | . 1 . . . . 3 1 Cannons 43 | . 10 10 10 . 1 4 8 Classes Destroyed 13 | . 5 . 2 . . 6 . Worker 4 | . 1 . . . . 3 . Tunneler 1 | . . . 1 . . . . Hauler 3 | . 2 1 . . . . . Recycler 5 | . . . . . . 4 1 Watcher 6 | . 3 2 . . . 1 . Swarmer 23 | . 5 7 7 . 1 . 3 Grunt 18 | . 6 3 2 . . 5 2 Brawler 1 | . . . 1 . . . . Sentry 5 | . . . . . . 1 4 Demolisher 1 | . . . . . . 1 . Hunter 1 | . . . . . . 1 . Programmer 2 | . . . . . . 2 . Behemoth 1 | . . . . . . 1 . Best Kill Streak 7 | . 5 7 4 . 1 5 3 Combat Bots Only 7 | . 3 7 4 . 1 3 3 Max Kills in Single Turn 2 | . 2 1 1 . 1 2 1 Gunslinging . | . . . . . . . . Exploded . | . . . . . . . . Melee 1 | . . . . . . 1 . Uniques/NPCs Destroyed . | . . . . . . . . Combat | -11 -10 -9 -9 -7 -6 -6 -6 -------- Run | Scr Mat Mat Min Zio Pro Fac Ext Damage Taken 4336 | . 171 207 229 . 79 2232 1418 Core 1036 | . 26 72 61 . . 398 479 Absorbed by Shields . | . . . . . . . . Core Remaining (%) 85 | 100 89 . . . 66 . . Volleys Fired 180 | . 39 26 25 1 4 60 25 Largest 3 | . 2 2 2 2 2 3 3 Hottest 153 | . 78 78 78 78 78 153 108 Shots Fired 417 | . 78 52 50 2 8 157 70 Gun 76 | . 20 . . . . 36 20 Cannon 341 | . 58 52 50 2 8 121 50 Launcher . | . . . . . . . . Special . | . . . . . . . . Kinetic 372 | . 78 52 50 2 8 112 70 Thermal 34 | . . . . . . 34 . Explosive . | . . . . . . . . Electromagnetic 11 | . . . . . . 11 . Robot Hit Streak 24 | . 10 5 6 1 4 21 24 Robot Miss Streak 5 | . 3 3 4 1 1 3 5 Penetration Max . | . . . . . . . . Secondary Targets . | . . . . . . . . Shots Hit Robots 285 | . 48 26 24 1 5 122 59 Core Hits 156 | . 20 14 11 1 2 52 56 Critical Hits 5 | . . 2 2 . . 1 . Critical Kills 1 | . . 1 . . . . . Critical Parts Destroyed 3 | . . 1 2 . . . . Melee Attacks 8 | . . . . . . 8 . Impact . | . . . . . . . . Slashing . | . . . . . . . . Piercing 8 | . . . . . . 8 . Sneak Attacks . | . . . . . . . . Combat Hostiles . | . . . . . . . . Follow-up Attacks . | . . . . . . . . Damage Inflicted 5779 | . 871 522 473 32 65 2560 1256 Guns 713 | . 126 . . . . 406 181 Cannons 4841 | . 745 522 473 32 65 1929 1075 Explosions . | . . . . . . . . Melee 225 | . . . . . . 225 . Ramming . | . . . . . . . . Kinetic 4784 | . 871 522 473 32 65 1565 1256 Thermal 471 | . . . . . . 471 . Explosive . | . . . . . . . . Electromagnetic 299 | . . . . . . 299 . Impact . | . . . . . . . . Slashing . | . . . . . . . . Piercing 225 | . . . . . . 225 . Highest Corruption 1 | . 1 . . . . 1 1 Average Corruption 1 | . 1 . . . . 1 1 Corruption Purged . | . . . . . . . . Effects 4 | . 1 . . . . 1 2 Message Errors 2 | . 1 . . . . . 1 Energy Discharges 1 | . . . . . . 1 . Targeting Errors 1 | . . . . . . . 1 Overload Shots . | . . . . . . . . Overflow Damage 65 | . 19 12 5 . . 29 . Projectiles 65 | . 19 12 5 . . 29 . Explosions . | . . . . . . . . Melee . | . . . . . . . . Knockbacks 43 | . 4 7 4 . . 14 14 Impact . | . . . . . . . . Kinetic 39 | . 4 7 3 . . 13 12 Secondary 4 | . . . 1 . . 1 2 Self-Inflicted Damage . | . . . . . . . . Shots . | . . . . . . . . Rammed . | . . . . . . . . Targets Rammed . | . . . . . . . . Kicked . | . . . . . . . . Crushed . | . . . . . . . . Highest Temperature 581 | . 264 78 123 15 48 581 276 Average Temperature 90 | . 77 29 46 10 21 128 100 Received Heat Transfer 981 | . 72 42 18 . 27 459 363 Effects 17 | . 3 . . . . 14 . Shutdowns 4 | . . . . . . 4 . Energy Bleed 3 | . 3 . . . . . . Interference 2 | . . . . . . 2 . Short Circuit 2 | . . . . . . 2 . Damage (major) 6 | . . . . . . 6 . Siege Activations . | . . . . . . . . Robots Corrupted 1 | . . . . . . 1 . Combat Hostiles 1 | . . . . . . 1 . Parts Fried 1 | . . . . . . 1 . Impact Corruptions 1 | . . . . . . 1 . Robots Melted . | . . . . . . . . Combat Hostiles . | . . . . . . . . Parts Melted 2 | . . . . . . 2 . Heat Transferred 925 | . . . . . . 925 . Parts Sabotaged . | . . . . . . . . Parts Stolen . | . . . . . . . . Parts Stripped . | . . . . . . . . Power Chain Reactions . | . . . . . . . . Missiles Intercepted . | . . . . . . . . Alert | -11 -10 -9 -9 -7 -6 -6 -6 ------- Run | Scr Mat Mat Min Zio Pro Fac Ext Peak Influence 389 | . 254 332 389 . . 137 210 Initial 109 | . . 51 109 . . 14 10 Average 97 | . 72 188 317 . . 44 106 Maximum Alert Level 1 | . 1 1 1 . . . 1 Low Security (%) 84 | 100 96 41 7 . . 100 97 Level 1 15 | . 3 58 92 . . . 2 Level 2 . | . . . . . . . . Level 3 . | . . . . . . . . Level 4 . | . . . . . . . . Level 5 . | . . . . . . . . High Security . | . . . . . . . . Max Security . | . . . . . . . . Squads Dispatched 9 | . 2 . 1 . . 6 . Investigation 2 | . 2 . . . . . . Extermination 2 | . . . . . . 2 . Reinforcement 3 | . . . 1 . . 2 . Assault . | . . . . . . . . Garrison 2 | . . . . . . 2 . Intercept . | . . . . . . . . Construction Impeded 3 | . . . 1 . . 2 . Haulers Reinforced . | . . . . . . . . Stealth | -11 -10 -9 -9 -7 -6 -6 -6 --------- Run | Scr Mat Mat Min Zio Pro Fac Ext Distress Signals 3 | . . . . . . . 3 Communications Jammed . | . . . . . . . . Distress Signals . | . . . . . . . . Times Spotted 86 | . 15 14 12 . 9 19 17 Peak Tracking Total 5 | . 4 5 4 . 4 3 5 Tactical Retreats 2 | . . . 1 . . . 1 Traps | -11 -10 -9 -9 -7 -6 -6 -6 ------- Run | Scr Mat Mat Min Zio Pro Fac Ext Traps Triggered 4 | . 1 . . . . . 3 Indirectly . | . . . . . . . . Trap Hack Attempts . | . . . . . . . . Triggered . | . . . . . . . . Disarmed . | . . . . . . . . Reprogrammed . | . . . . . . . . Reused . | . . . . . . . . Traps Extracted . | . . . . . . . . Installed . | . . . . . . . . Triggered . | . . . . . . . . Machines | -11 -10 -9 -9 -7 -6 -6 -6 ---------- Run | Scr Mat Mat Min Zio Pro Fac Ext Machines Disabled 2 | . 1 . . . . 1 . Max in Single Turn 1 | . 1 . . . . 1 . Garrison Access 1 | . . . . . . 1 . Machines Sabotaged . | . . . . . . . . Garrisons Compromised . | . . . . . . . . Overloaded Fab Kills . | . . . . . . . . Fab Network Shutdowns . | . . . . . . . . Hacking | -11 -10 -9 -9 -7 -6 -6 -6 --------- Run | Scr Mat Mat Min Zio Pro Fac Ext Machines Accessed 8 | . 6 . . 1 . 1 . Terminals 5 | . 5 . . . . . . Fabricators . | . . . . . . . . Repair Stations 1 | . 1 . . . . . . Recycling Units . | . . . . . . . . Scanalyzers . | . . . . . . . . Garrison Access 1 | . . . . . . 1 . Total Hacks 25 | . 18 . . 6 . 1 . Successful 17 | . 10 . . 6 . 1 . Failed 8 | . 8 . . . . . . Catastrophic . | . . . . . . . . Database Lockouts . | . . . . . . . . Manual 1 | . . . . 1 . . . Terminals 15 | . 15 . . . . . . Fabricators . | . . . . . . . . Repair Stations 3 | . 3 . . . . . . Recycling Units . | . . . . . . . . Scanalyzers . | . . . . . . . . Garrison Access 1 | . . . . . . 1 . Terminal Hacks 14 | . 8 . . 6 . . . Record 4 | . 4 . . . . . . Part Schematic 6 | . . . . 6 . . . Emergency Access Points 1 | . 1 . . . . . . Alert Level 1 | . 1 . . . . . . Locate Traps 1 | . 1 . . . . . . Zone Layout 1 | . 1 . . . . . . Fabricator Hacks . | . . . . . . . . Repair Station Hacks 2 | . 2 . . . . . . Scan Component 1 | . 1 . . . . . . Repair 1 | . 1 . . . . . . Recycling Unit Hacks . | . . . . . . . . Scanalyzer . | . . . . . . . . Garrison Access Hacks 1 | . . . . . . 1 . Seal Access 1 | . . . . . . 1 . Unauthorized Hacks . | . . . . . . . . Terminals . | . . . . . . . . Fabricators . | . . . . . . . . Repair Stations . | . . . . . . . . Recycling Units . | . . . . . . . . Scanalyzers . | . . . . . . . . Garrison Access . | . . . . . . . . Data Cores Recovered . | . . . . . . . . Used . | . . . . . . . . Hacking Detections 5 | . 5 . . . . . . Full Trace Events 3 | . 3 . . . . . . Feedback Events 1 | . 1 . . . . . . Corruption 1 | . 1 . . . . . . Feedback Blocked . | . . . . . . . . Robot Schematics Acquired . | . . . . . . . . Robots Built . | . . . . . . . . Matter . | . . . . . . . . Time . | . . . . . . . . Total Robot Build Rating . | . . . . . . . . Part Schematics Acquired 6 | . . . . 6 . . . Parts Built . | . . . . . . . . Matter . | . . . . . . . . Time . | . . . . . . . . Total Part Build Rating . | . . . . . . . . Parts Repaired 1 | . 1 . . . . . . Time 26 | . 26 . . . . . . Parts Recycled . | . . . . . . . . Recycled Matter . | . . . . . . . . Retrieved Matter . | . . . . . . . . Retrieved Components . | . . . . . . . . Parts Scanalyzed . | . . . . . . . . Part Schematics Acquired . | . . . . . . . . Parts Damaged . | . . . . . . . . Bothacking | -11 -10 -9 -9 -7 -6 -6 -6 ------------ Run | Scr Mat Mat Min Zio Pro Fac Ext Used RIF Installer . | . . . . . . . . Robots Hacked . | . . . . . . . . Non-combat . | . . . . . . . . Combat . | . . . . . . . . Robot Hacks Applied . | . . . . . . . . Relay Couplers Released . | . . . . . . . . Robots Rewired . | . . . . . . . . Allies Hacked . | . . . . . . . . Hacks Repelled . | . . . . . . . . Allies | -11 -10 -9 -9 -7 -6 -6 -6 -------- Run | Scr Mat Mat Min Zio Pro Fac Ext Total Allies 8 | . . . 1 7 . . . Largest Group 8 | . . . 1 8 8 3 . Highest-Rated Group 241 | . . . 31 241 241 112 . Highest-Rated Ally 39 | . . . 31 39 39 39 . Total Orders . | . . . . . . . . Ally Attacks 50 | . . . . . 33 17 . Total Damage 1630 | . . . . . 1000 630 . Kills 14 | . . . . . 11 3 . Allies Corrupted . | . . . . . . . . Allies Melted . | . . . . . . . . Intel | -11 -10 -9 -9 -7 -6 -6 -6 ------- Run | Scr Mat Mat Min Zio Pro Fac Ext Robot Analysis Total . | . . . . . . . . Derelict Logs Recovered 2 | . . . 1 1 . . . Drone Launches . | . . . . . . . . Drone Recoveries . | . . . . . . . . Exploration | -11 -10 -9 -9 -7 -6 -6 -6 ------------- Run | Scr Mat Mat Min Zio Pro Fac Ext Turns Passed 5369 | 43 706 308 276 1751 551 1324 410 Spaces Moved 3526 | 35 515 187 183 1483 425 461 237 Core 61 | 7 . . . . . 53 1 Treads . | . . . . . . . . Legs . | . . . . . . . . Wheels 3465 | 28 515 187 183 1483 425 408 236 Hover . | . . . . . . . . Flight . | . . . . . . . . Fastest Speed 50 | 50 90 105 105 105 110 103 110 Average Speed 125 | 82 99 108 105 110 114 231 117 Slowest Speed 1250 | 100 100 110 105 115 115 1250 950 Overloaded Moves . | . . . . . . . . Propulsion Burnouts . | . . . . . . . . Robots Hopped . | . . . . . . . . Cave-ins Triggered . | . . . . . . . . Exploration Rate (%) 42 | 4 88 19 31 93 52 9 43 Regions Visited 7 Branch Regions 4 Pre-discovered Areas 1 | . . . . 1 . . . Known Exits Taken 1 | . . . . . . 1 . Unknown Exits Taken 6 | 1 1 1 1 1 1 . . Scrap Searched 5 | . . . . 2 3 . . Spaces Dug . | . . . . . . . . Terrain Destroyed 10 | . 4 3 3 . . . . Melee . | . . . . . . . . Projectile 10 | . 4 3 3 . . . . AOE . | . . . . . . . . Terrain Rammed . | . . . . . . . . Walls Destroyed . | . . . . . . . . Machines Disabled . | . . . . . . . . Actions | -11 -10 -9 -9 -7 -6 -6 -6 --------- Run | Scr Mat Mat Min Zio Pro Fac Ext Total 4101 | 48 633 241 218 1590 483 574 314 Wait 237 | . 40 14 9 96 47 9 22 Move 3519 | 34 514 186 182 1482 424 460 237 Hop . | . . . . . . . . Pick Up 64 | 7 23 7 1 4 4 9 9 Fast Attach . | . . . . . . . . Attach 35 | 6 2 2 . . . 23 2 Detach . | . . . . . . . . Swap 21 | 1 8 2 . 4 1 3 2 Drop 21 | . 7 4 1 3 3 2 1 Fire 180 | . 39 26 25 1 4 60 25 Melee 8 | . . . . . . 8 . Ram . | . . . . . . . . Kick . | . . . . . . . . Crush . | . . . . . . . . Escape Stasis 16 | . . . . . . . 16 Rewire . | . . . . . . . . Trap . | . . . . . . . . Miscellaneous . | . . . . . . . . Route ------- -11/Scrapyard -10/Materials (discovered 4 exits: [*Mat x3] / [*Min]) -9/Materials -9/Mines -7/Zion -6/Proximity Caves -6/Factory (discovered 2 exits: Fac / *Ext) -6/Extension History --------- Turn | Location | Event 6 | -11/Scrapyard | Discovered new exit (range 16) 44 | -11/Scrapyard | Entered Materials 306 | -10/Materials | Discovered new exit (range 9) 307 | -10/Materials | Build established: Mutant 416 | -10/Materials | Discovered new exit (range 9) 522 | -10/Materials | Repaired Wheel 604 | -10/Materials | Discovered new exit (range 7) 699 | -10/Materials | Discovered new exit (range 16) 750 | -10/Materials | Entered another Materials area 750 | -9/Materials | Evolved 2 slots: Utility x2 898 | -9/Materials | Destroyed 7 combat bots 936 | -9/Materials | Discovered new exit (range 16) 1058 | -9/Materials | Entered Mines 1059 | -9/Mines | Met a Derelict bent on vengeance 1171 | -9/Mines | A Derelict revealed a hidden shortcut to a safe place 1183 | -9/Mines | Learned location of 1 exit from Materials 1252 | -9/Mines | Escorted by a lone wolf Derelict 1334 | -9/Mines | Entered Zion 1334 | -7/Zion | Accompanied by 1 ally 1365 | -7/Zion | Learned location of 2 exits from Factory 1400 | -7/Zion | Discovered new exit (range 11) 1451 | -7/Zion | Given the Hacking Drone Bay 1461 | -7/Zion | Found Prototype Device 1462 | -7/Zion | Identified Hacking Drone Bay 1486 | -7/Zion | Found CR-A16's Pointy Stick 1853 | -7/Zion | Imprinted 1855 | -7/Zion | Declared Zion's savior 2351 | -7/Zion | Gained Derelict followers 2475 | -7/Zion | Learned location of Data Miner (-6) 3085 | -7/Zion | Entered Proximity Caves 3085 | -6/Proximity Caves | Accompanied by 8 allies 3572 | -6/Proximity Caves | Discovered new exit (range 6) 3636 | -6/Proximity Caves | Entered Factory 3636 | -6/Factory | Accompanied by 3 allies 3636 | -6/Factory | Evolved 6 slots: Power x1, Propulsion x1, Utility x3, Weapon x1 3637 | -6/Factory | Identified exit to Factory 3637 | -6/Factory | Identified exit to Extension 3805 | -6/Factory | Garrison activated, responded to threat 3971 | -6/Factory | Lost 3 parts (1n2w) 4013 | -6/Factory | Lost 3 parts (2u1w) 4043 | -6/Factory | Spotted B-75 Beast 4102 | -6/Factory | Destroyed B-75 Beast 4114 | -6/Factory | Lost 4 parts (2p2u) 4167 | -6/Factory | Lost 3 parts (1n2w) 4498 | -6/Factory | Build established: Gunner 4960 | -6/Factory | Entered Extension 5060 | -6/Extension | Disrupted transfer network 5074 | -6/Extension | Core integrity fell below 50% 5194 | -6/Extension | Build established: Scavenger-Gunner 5269 | -6/Extension | Spotted B-75 Beast 5329 | -6/Extension | Lost 4 parts (2p1u1w) 5350 | -6/Extension | Spotted B-75 Beast 5367 | -6/Extension | Core integrity fell below 20% 5370 | -6/Extension | Destroyed by B-75 Beast with Heavy Plasma Cannon Last Messages --------------- 05303_ Y-54 Guardian destroyed. 05308_ Acquired 37 matter. 05344_ Flak Cannon destroyed. 05347_ Knocked back. 05349_ W-25 Informer distress signal alerts nearby ally. 05350_ Machine disabled. 05350_ Flak Cannon destroyed. 05350_ Com. Wheel destroyed. 05350_ Hcp. Battery destroyed. 05355_ Knocked back. 05355_ C-30 ARC bursts open, deploying its payload. 05355_ H-66 Slayer unfolds itself. 05355_ Slug penetrates Machine. 05356_ Com. Wheel destroyed. 05358_ Machine disabled. 05361_ Slug penetrates Machine. 05362_ Hcp. Matter Pod destroyed. 05362_ Flak Gun destroyed. 05364_ Hcp. Storage Unit destroyed. 05368_ Penetrated by Slug. Map ----- +----------------------------------------------------+ | ###### #???????????????????????????????? | | """ #???????????????????????????????? | | "T" ^ #???????????????????????????????? | | " " #####???????????????????????????? | | ^ #???????????????????????????? | | ^ #???????????????????????????? | | #######^^ #### #???????????????????????????? | | #?????#% #??# #???????????????????????????? | | #?????# % #??# #???????????????????????????? | | #?????#### #??# #???????????????????????????? | | "####????????# #??# #???????????????????????????? | | T"#???????????# #??# #???????????????????????????? | | ""????????????# #??# #???????????????????????????? | | ??????????????# #??# #???????????????????????????? | | ??????????????# #??# #???????????????????????????? | | ????????????###+#### #???????????????????????????? | | ????????????# # #???????????????????????????? | | ????????????# = # #???????????????????????????? | | ????????????# + #???????????????????????????? | | ????????????# === # #???????????????????????????? | | ????????????# # #???????????????????????????? | | ????????????# # #??###??????????????????????? | | ????????????######## #### ###????????????????????? | | ???????????????????# ##;#;#;##???????????????????? | | ?????????????????### #;; ;; ;## ##???????????????? | | ?????????????????# @ " %""#??????????????? | | ?????????????????# " h" #??????????????? | | ?????????????????# w #??????????????? | | ?????????????????# #??????????????? | | ?????????????????# #??????????????? | | ???????????????? ????????????? | | ?????????????? ???????????? | | ???????????? ??????????? | | ??????????? k k ???????????? | | ??????????? tBBuk uR A ???????????? | | ??????????######## BB BB ###????????????? | | ?????????????????# BB #??????????????? | | ?????????????????# #??????????????? | | ?????????????????# ????????????????? | | ?????????????????# ??????????????????? | | ?????????????????######T#"""?????????????????????? | | ?????????????????????????????????????????????????? | | ?????????????????????????????????????????????????? | | | | | | | | | | | | | | | +----------------------------------------------------+ Best States ------------- Heat Dissipation 37 Energy Generation 27 Energy Capacity 1020 Matter Stores 500 Matter Capacity 500 Sight Range 16 Terrain Scan Density 10 Armor Coverage 150 Resistance: KI 20 Resistance: TH 20 Resistance: EX 20 Resistance: EM 20 Resistance: I 20 Resistance: S 20 Resistance: P 20 Core Shielding 20 Propulsion Shielding 66 Evasion (%) 42 Offensive Hacking 10 Item Schematics ----------------- Beamcaster | -7/Zion | Free Riot Gun | -7/Zion | Free Arc Thrower | -7/Zion | Free Battle Cannon | -7/Zion | Free Flamer | -7/Zion | Free Tactical Coordination Suite | -7/Zion | Free Robot Schematics ------------------ None Fabricated ------------ Nothing Alien Tech Used ----------------- None Achievements -------------- None Challenges ------------ None Game ------ Seed ImprovedRefineryApparatus Manual? 0 Play Time 00:52:03 Cumulative 84.6 hours Start 2022.02.14 @ 13:58:33 End 2022.02.14 @ 14:48:46 Sessions 1 Manual Loads 0 Difficulty Adventurer Special Mode None Game No. 54 Rogue 46 Adventurer 8 Explorer 0 Win Type - Total 0 Types 0/0/0/0/0/0/0/0/0 Lore% 19 Gallery% 34 Achievement% 23 Wizard Run 0 Options --------- ASCII 0 Keyboard 0 Movement Mouse Keybinds 0 Fullscreen 1 Font 24/Smallcaps Map View 113x50 Tactical HUD 1 Map Filters NONE Filters NONE Steam 1 RUN: 45e6ec98-d2e8-45c1-aee7-c1cf5d2367db